fUST/lending_fUST_20250926
["ID","MTS","AMOUNT","RATE_DAILY","PERIOD"]
[387811616,1758886248661,-480.0,0.00039178,30]
[387811617,1758886248671,-151.0,0.00039178,120]
[387811618,1758886248680,-480.0,0.00039178,30]
[387811619,1758886248690,-151.0,0.00039178,15]
[387811620,1758886248699,-533.60011487,0.00039178,30]
[387811621,1758886248708,-480.0,0.00039178,30]
[387811622,1758886248718,-1257.23,0.00039178,30]
[387811623,1758886248727,-480.0,0.00039178,30]
[387811624,1758886248738,-480.0,0.00039178,30]
[387811625,1758886248747,-480.0,0.00039178,30]
[387811626,1758886248758,-480.0,0.00039178,30]
[387811627,1758886248767,-480.0,0.00039178,30]
[387811628,1758886248777,-480.0,0.00039178,30]
[387811629,1758886248787,-480.0,0.00039178,30]
[387811630,1758886248796,-588.69559239,0.00039178,30]
[387811631,1758886248805,-480.0,0.00039178,30]
[387811632,1758886248815,-480.0,0.00039178,30]
[387811633,1758886248825,-480.0,0.00039178,30]
[387811634,1758886248834,-489.62042973,0.00039178,30]
[387811635,1758886248844,-1140.79,0.00039178,30]
[387811636,1758886248855,-4563.8,0.00039178,30]
[387811637,1758886248871,-1477.84,0.00039178,30]
[387811638,1758886248881,-949.16,0.00039178,30]
[387811639,1758886248891,-151.0,0.00039178,120]
[387811640,1758886248901,-480.0,0.00039178,30]
[387811641,1758886248911,-927.1,0.00039178,30]
[387811642,1758886248920,-151.0,0.00039178,120]
[387811643,1758886248930,-2921.82,0.00039178,30]
[387811644,1758886248941,-1657.92,0.00039178,30]
[387811645,1758886248950,-914.89,0.00039178,30]
[387811646,1758886248960,-480.0,0.00039178,30]
[387811647,1758886248969,-480.0,0.00039178,30]
[387811648,1758886248979,-480.0,0.00039178,30]
[387811649,1758886248989,-480.0,0.00039178,30]
[387811650,1758886248999,-480.0,0.00039178,30]
[387811651,1758886249009,-480.0,0.00039178,30]
[387811652,1758886249018,-480.0,0.00039178,30]
[387811653,1758886249028,-480.0,0.00039178,30]
[387811654,1758886249038,-151.0,0.00039178,120]
[387811655,1758886249046,-480.0,0.00039178,30]
[387811656,1758886249055,-2209.22,0.00039178,30]
[387811657,1758886249064,-151.0,0.00039178,120]
[387811658,1758886249073,-431.28003306,0.00039178,30]
[387811659,1758886249083,-151.0,0.00039178,120]
[387811660,1758886249093,-480.0,0.00039178,30]
[387811661,1758886249102,-271.8,0.00039178,120]
[387811662,1758886249112,-480.0,0.00039178,30]
[387811663,1758886249121,-151.0,0.00039178,120]
[387811664,1758886249131,-480.0,0.00039178,30]
[387811665,1758886249140,-480.0,0.00039178,30]
[387811666,1758886249149,-480.0,0.00039178,30]
[387811667,1758886249158,-480.0,0.00039178,30]
[387811668,1758886249167,-480.0,0.00039178,30]
[387811669,1758886249177,-480.0,0.00039178,30]
[387811670,1758886249186,-480.0,0.00039178,30]
[387811671,1758886249195,-485.22635974,0.00039178,30]
[387811672,1758886249204,-480.0,0.00039178,30]
[387811674,1758886249214,-775.73,0.00039178,30]
[387811676,1758886249223,-667.41,0.00039178,30]
[387811677,1758886249233,-1804.54,0.00039178,30]
[387811678,1758886249243,-480.0,0.00039178,30]
[387811679,1758886249253,-485.03464522,0.00039178,30]
[387811680,1758886249263,-480.0,0.00039178,30]
[387811681,1758886249272,-890.02,0.00039178,30]
[387811682,1758886249282,-911.51,0.00039178,30]
[387811683,1758886249291,-3647.69,0.00039178,30]
[387811684,1758886249300,-486.0110203,0.00039178,30]
[387811686,1758886249310,-1929.82,0.00039178,30]
[387811687,1758886249320,-1139.95,0.00039178,30]
[387811688,1758886249329,-559.62804324,0.00039178,30]
[387811689,1758886249339,-480.0,0.00039178,30]
[387811690,1758886249348,-480.0,0.00039178,30]
[387811691,1758886249357,-480.0,0.00039178,30]
[387811692,1758886249366,-672.24,0.00039178,30]
[387811693,1758886249375,-480.0,0.00039178,30]
[387811694,1758886249384,-153.225891,0.00039178,120]
[387811695,1758886249393,-480.0,0.00039178,30]
[387811696,1758886249403,-1456.76,0.00039178,30]
[387811697,1758886249412,-1256.61,0.00039178,30]
[387811698,1758886249421,-388.4745725,0.00039178,30]
[387811699,1758886249430,-151.667505,0.00039178,120]
[387811700,1758886249439,-487.15416301,0.00039178,30]
[387811701,1758886249448,-490.46126304,0.00039178,30]
[387811702,1758886249457,-1058.01,0.00039178,30]
[387811703,1758886249466,-480.0,0.00039178,30]
[387811704,1758886249475,-531.16,0.00039178,30]
[387811705,1758886249484,-480.0,0.00039178,30]
[387811706,1758886249493,-707.41,0.00039178,30]
[387811707,1758886249503,-151.0,0.00039178,120]
[387811708,1758886249512,-480.0,0.00039178,30]
[387811709,1758886249521,-1553.02,0.00039178,30]
[387811710,1758886249530,-151.0,0.00039178,120]
[387811711,1758886249539,-502.37108382,0.00039178,30]
[387811712,1758886249548,-480.0,0.00039178,30]
[387811713,1758886249557,-151.0,0.00039178,120]
[387811714,1758886249567,-151.0,0.00039178,120]
[387811715,1758886249576,-482.27785651,0.00039178,30]
[387811716,1758886249585,-151.0,0.00039178,120]
[387811717,1758886249595,-480.0,0.00039178,30]
[387811718,1758886249604,-1042.28,0.00039178,21]
[387811719,1758886249613,-333.57358653,0.00039178,30]
[387811720,1758886249622,-480.0,0.00039178,30]
[387811721,1758886249631,-480.0,0.00039178,30]
[387811722,1758886249640,-480.0,0.00039178,30]
[387811723,1758886249649,-513.82,0.00039178,30]
[387811724,1758886249658,-480.0,0.00039178,30]
[387811725,1758886249667,-975.79,0.00039178,30]
[387811726,1758886249676,-956.88,0.00039178,30]
[387811727,1758886249685,-1622.58,0.00039178,30]
[387811728,1758886249694,-742.63,0.00039178,30]
[387811730,1758886249703,-480.0,0.00039178,30]
[387811732,1758886249713,-923.8,0.00039178,30]
[387811734,1758886249722,-960.74,0.00039178,30]
[387811735,1758886249731,-1015.2,0.00039178,30]
[387811736,1758886249740,-489.07190276,0.00039178,30]
[387811737,1758886249750,-692.2,0.00039178,30]
[387811738,1758886249760,-480.0,0.00039178,30]
[387811739,1758886249769,-480.0,0.00039178,30]
[387811740,1758886249779,-480.0,0.00039178,30]
[387811741,1758886249788,-480.0,0.00039178,30]
[387811742,1758886249797,-480.0,0.00039178,30]
[387811743,1758886249807,-483.41540494,0.00039178,30]
[387811744,1758886249816,-480.0,0.00039178,30]
[387811745,1758886249826,-480.0,0.00039178,30]
[387811746,1758886249836,-1057.22,0.00039178,30]
[387811747,1758886249846,-480.0,0.00039178,30]
[387811748,1758886249856,-639.89,0.00039178,30]
[387811749,1758886249868,-175.952153,0.00039178,120]
[387811750,1758886249878,-1614.22,0.00039178,3]
[387811751,1758886249887,-480.0,0.00039178,30]
[387811752,1758886249896,-480.0,0.00039178,30]
[387811753,1758886249907,-1131.75,0.00039178,30]
[387811754,1758886249916,-488.44157778,0.00039178,30]
[387811755,1758886249925,-1509.77,0.00039178,30]
[387811756,1758886249935,-2107.48,0.00039178,30]
[387811757,1758886249944,-481.90476486,0.00039178,30]
[387811758,1758886249953,-490.57914154,0.00039178,30]
[387811759,1758886249963,-480.0,0.00039178,30]
[387811760,1758886249972,-480.0,0.00039178,30]
[387811761,1758886249981,-480.0,0.00039178,30]
[387811762,1758886249991,-480.0,0.00039178,30]
[387811763,1758886250001,-1117.68,0.00039178,30]
[387811764,1758886250010,-485.92998763,0.00039178,30]
[387811765,1758886250019,-480.0,0.00039178,30]
[387811766,1758886250028,-480.0,0.00039178,30]
[387811767,1758886250038,-4313.75,0.00039178,30]
[387811768,1758886250047,-5619.58,0.00039178,30]
[387811769,1758886250056,-480.0,0.00039178,30]
[387811770,1758886250065,-480.0,0.00039178,30]
[387811771,1758886250075,-5129.75,0.00039178,30]
[387811772,1758886250083,-480.0,0.00039178,30]
[387811773,1758886250092,-666.88,0.00039178,30]
[387811774,1758886250101,-480.0,0.00039178,30]
[387811775,1758886250111,-480.0,0.00039178,30]
[387811776,1758886250121,-1231.34,0.00039178,30]
[387811777,1758886250130,-480.0,0.00039178,30]
[387811778,1758886250139,-480.0,0.00039178,30]
[387811779,1758886250148,-480.0,0.00039178,30]
[387811780,1758886250158,-480.0,0.00039178,30]
[387811781,1758886250167,-491.14830656,0.00039178,30]
[387811782,1758886250177,-510.99,0.00039178,30]
[387811783,1758886250186,-484.90020733,0.00039178,30]
[387811784,1758886250195,-151.0,0.000392,11]
[387811785,1758886250203,-1000.0,0.00039221,5]
[387811786,1758886250212,-330.72368539,0.00039221,5]
[387811787,1758886250221,-1000.0,0.00039221,5]
[387811788,1758886250230,-1000.0,0.00039221,5]
[387811789,1758886250241,-1000.98096882,0.00039221,2]
[387811790,1758886250250,-1000.0,0.00039221,5]
[387811791,1758886250260,-478.78102613,0.00039221,5]
[387811792,1758886250271,-702.87362549,0.00039221,5]
[387811793,1758886250280,-1000.0,0.00039221,5]
[387811794,1758886250290,-1054.84096934,0.00039221,5]
[387811795,1758886250299,-1000.0,0.00039221,5]
[387811796,1758886250308,-1000.0,0.00039221,5]
[387811797,1758886250317,-1000.0,0.00039221,5]
[387811798,1758886250327,-629.49467178,0.00039221,5]
[387811799,1758886250336,-1000.0,0.00039221,5]
[387811800,1758886250345,-380.64569965,0.00039221,5]
[387811801,1758886250355,-1000.0,0.00039221,5]
[387811802,1758886250364,-1000.0,0.00039221,5]
[387811803,1758886250374,-1000.0,0.00039221,5]
[387811804,1758886250384,-1000.0,0.00039221,5]
[387811805,1758886250392,-1009.17100949,0.00039221,5]
[387811806,1758886250401,-1000.0,0.00039221,5]
[387811807,1758886250410,-511.11538525,0.00039221,5]
[387811808,1758886250419,-507.73310041,0.00039221,5]
[387811809,1758886250428,-804.86574371,0.00039256,3]
[387811810,1758886250437,-151.0,0.00039266,3]
[387811811,1758886250447,-151.0,0.00039266,3]
[387811812,1758886250456,-151.0,0.00039266,3]
[387811813,1758886250465,-151.0,0.00039266,3]
[387811814,1758886250474,-151.0,0.00039266,3]
[387811815,1758886250483,-151.0,0.00039266,3]
[387811816,1758886250492,-151.0,0.00039266,3]
[387811817,1758886250500,-151.0,0.00039266,3]
[387811818,1758886250510,-151.31144613,0.00039266,3]
[387811819,1758886250519,-151.0,0.00039266,3]
[387811820,1758886250528,-151.0,0.00039266,3]
[387811821,1758886250538,-163.0,0.00039266,3]
[387811822,1758886250547,-151.0,0.00039266,3]
[387811823,1758886250556,-151.0,0.00039266,3]
[387811824,1758886250651,-151.0,0.00039266,3]
[387811825,1758886250661,-281.70302615,0.00039266,3]
[387811826,1758886250671,-151.0,0.00039266,3]
[387811827,1758886250680,-151.0,0.00039266,3]
[387811828,1758886250689,-151.0,0.00039266,3]
[387811829,1758886250699,-151.30050291,0.00039266,3]
[387811830,1758886250708,-194.11698866,0.00039266,3]
[387811831,1758886250717,-151.0,0.00039266,3]
[387811832,1758886250726,-151.0,0.00039266,3]
[387811833,1758886250735,-151.0,0.00039266,3]
[387811834,1758886250745,-151.0,0.00039266,3]
[387811835,1758886250755,-151.0,0.00039266,3]
[387811836,1758886250764,-151.0,0.00039266,3]
[387811837,1758886250774,-500.0,0.00039266,3]
[387811838,1758886250783,-500.0,0.00039352,30]
[387811839,1758886250792,-177.03570753,0.00039352,4]
[387811840,1758886250802,-917.2,0.000394,24]
[387811841,1758886250811,-219.1,0.00039448,30]
[387811842,1758886250821,-480.0,0.00039452,30]
[387811843,1758886250831,-480.0,0.00039452,30]
[387811844,1758886250841,-480.0,0.00039452,30]
[387811845,1758886250851,-480.0,0.00039452,30]
[387811846,1758886250863,-480.0,0.00039452,30]
[387811847,1758886250872,-480.0,0.00039452,30]
[387811848,1758886250882,-362.88884536,0.00039452,30]
[387811849,1758886250891,-480.0,0.00039452,30]
[387811850,1758886250900,-480.0,0.00039452,30]
[387811851,1758886250911,-487.87976645,0.00039452,30]
[387811852,1758886250920,-480.0,0.00039452,30]
[387811853,1758886250929,-480.0,0.00039452,30]
[387811854,1758886250941,-480.0,0.00039452,30]
[387811855,1758886250951,-480.0,0.00039452,30]
[387811856,1758886250961,-480.0,0.00039452,30]
[387811857,1758886250970,-480.0,0.00039452,30]
[387811858,1758886250979,-480.0,0.00039452,30]
[387811859,1758886250988,-1185.5,0.00039452,30]
[387811860,1758886250999,-480.0,0.00039452,30]
[387811861,1758886251008,-716.53,0.00039452,30]
[387811862,1758886251017,-480.0,0.00039452,30]
[387811863,1758886251026,-518.02,0.00039452,30]
[387811864,1758886251035,-480.0,0.00039452,30]
[387811865,1758886251044,-480.0,0.00039452,30]
[387811866,1758886251054,-480.0,0.00039452,30]
[387811867,1758886251063,-480.0,0.00039452,30]
[387811868,1758886251072,-548.41,0.00039452,30]
[387811869,1758886251081,-480.0,0.00039452,30]
[387811870,1758886251090,-493.47076663,0.00039452,30]
[387811871,1758886251099,-480.0,0.00039452,30]
[387811872,1758886251109,-1173.31,0.00039452,30]
[387811873,1758886251118,-480.0,0.00039452,30]
[387811874,1758886251128,-480.0,0.00039452,30]
[387811875,1758886251137,-480.0,0.00039452,30]
[387811876,1758886251146,-480.0,0.00039452,30]
[387811877,1758886251155,-480.0,0.00039452,30]
[387811878,1758886251164,-480.0,0.00039452,30]
[387811879,1758886251173,-480.0,0.00039452,30]
[387811880,1758886251182,-480.0,0.00039452,30]
[387811881,1758886251191,-480.0,0.00039452,30]
[387811882,1758886251200,-480.0,0.00039452,30]
[387811883,1758886251209,-951.8,0.00039452,30]
[387811884,1758886251218,-482.98381766,0.00039452,30]
[387811885,1758886251227,-480.0,0.00039452,30]
[387811886,1758886251236,-480.0,0.00039452,30]
[387811887,1758886251246,-480.0,0.00039452,30]
[387811888,1758886251255,-480.0,0.00039452,30]
[387811889,1758886251264,-480.0,0.00039452,30]
[387811890,1758886251273,-480.0,0.00039452,30]
[387811891,1758886251282,-480.0,0.00039452,30]
[387811892,1758886251291,-480.0,0.00039452,30]
[387811893,1758886251300,-151.0,0.00039452,120]
[387811894,1758886251309,-480.0,0.00039452,30]
[387811895,1758886251318,-1250.3,0.00039452,30]
[387811896,1758886251328,-480.0,0.00039452,30]
[387811897,1758886251337,-151.0,0.00039452,120]
[387811898,1758886251347,-480.0,0.00039452,30]
[387811899,1758886251356,-480.0,0.00039452,30]
[387811900,1758886251364,-577.92861403,0.00039452,30]
[387811901,1758886251373,-480.0,0.00039452,30]
[387811902,1758886251382,-480.0,0.00039452,30]
[387811903,1758886251392,-480.0,0.00039452,30]
[387811904,1758886251401,-151.0,0.00039452,120]
[387811905,1758886251411,-151.461823,0.00039452,120]
[387811906,1758886251420,-480.0,0.00039452,30]
[387811907,1758886251430,-480.0,0.00039452,30]
[387811908,1758886251439,-480.0,0.00039452,30]
[387811909,1758886251449,-480.0,0.00039452,30]
[387811910,1758886251459,-151.0,0.00039452,120]
[387811911,1758886251469,-480.0,0.00039452,30]
[387811912,1758886251478,-480.0,0.00039452,30]
[387811913,1758886251488,-472.79070997,0.00039452,30]
[387811914,1758886251499,-480.0,0.00039452,30]
[387811915,1758886251509,-152.037493,0.00039452,120]
[387811916,1758886251518,-480.0,0.00039452,30]
[387811917,1758886251527,-486.64793967,0.00039452,30]
[387811918,1758886251536,-151.0,0.00039452,120]
[387811919,1758886251545,-480.0,0.00039452,30]
[387811920,1758886251554,-480.0,0.00039452,30]
[387811921,1758886251563,-151.0,0.00039452,120]
[387811922,1758886251572,-480.0,0.00039452,30]
[387811923,1758886251582,-531.24,0.00039452,30]
[387811924,1758886251591,-151.0,0.00039452,120]
[387811925,1758886251600,-281.855502,0.00039452,120]
[387811926,1758886251609,-480.0,0.00039452,30]
[387811927,1758886251618,-151.0,0.00039452,120]
[387811928,1758886251628,-198.697423,0.00039452,120]
[387811929,1758886251637,-480.0,0.00039452,30]
[387811930,1758886251646,-480.0,0.00039452,30]
[387811931,1758886251656,-519.19,0.00039452,30]
[387811932,1758886251667,-480.0,0.00039452,30]
[387811933,1758886251676,-480.0,0.00039452,30]
[387811934,1758886251687,-480.0,0.00039452,30]
[387811935,1758886251696,-1257.23,0.00039452,30]
[387811936,1758886251706,-480.0,0.00039452,30]
[387811937,1758886251715,-488.92347426,0.00039452,30]
[387811938,1758886251724,-480.0,0.00039452,30]
[387811939,1758886251733,-480.0,0.00039452,30]
[387811940,1758886251743,-389.1272729,0.00039452,30]
[387811941,1758886251752,-480.0,0.00039452,30]
[387811942,1758886251761,-471.62023482,0.00039452,30]
[387811943,1758886251771,-486.20880973,0.00039452,30]
[387811944,1758886251780,-480.0,0.00039452,30]
[387811945,1758886251790,-480.0,0.00039452,30]
[387811946,1758886251799,-1140.79,0.00039452,30]
[387811947,1758886251808,-4563.8,0.00039452,30]
[387811948,1758886251817,-1477.84,0.00039452,30]
[387811949,1758886251827,-949.16,0.00039452,30]
[387811950,1758886251836,-490.90950099,0.00039452,30]
[387811951,1758886251846,-927.1,0.00039452,30]
[387811952,1758886251855,-2921.82,0.00039452,30]
[387811953,1758886251867,-1657.92,0.00039452,30]
[387811954,1758886251876,-914.89,0.00039452,30]
[387811955,1758886251885,-480.0,0.00039452,30]
[387811956,1758886251895,-486.20323516,0.00039452,30]
[387811957,1758886251904,-480.0,0.00039452,30]
[387811958,1758886251914,-480.0,0.00039452,30]
[387811959,1758886251922,-480.0,0.00039452,30]
[387811960,1758886251932,-480.0,0.00039452,30]
[387811961,1758886251941,-480.0,0.00039452,30]
[387811962,1758886251952,-333.23115914,0.00039452,30]
[387811963,1758886251962,-480.0,0.00039452,30]
[387811964,1758886251971,-2209.22,0.00039452,30]
[387811965,1758886251980,-480.0,0.00039452,30]
[387811966,1758886251989,-382.41014135,0.00039452,30]
[387811967,1758886251999,-454.91964016,0.00039452,30]
[387811968,1758886252009,-480.0,0.00039452,30]
[387811969,1758886252018,-480.0,0.00039452,30]
[387811970,1758886252027,-480.0,0.00039452,30]
[387811971,1758886252038,-480.0,0.00039452,30]
[387811972,1758886252047,-212.60529766,0.00039452,30]
[387811973,1758886252056,-480.0,0.00039452,30]
[387811974,1758886252065,-480.0,0.00039452,30]
[387811975,1758886252074,-775.73,0.00039452,30]
[387811976,1758886252084,-667.41,0.00039452,30]
[387811977,1758886252093,-1804.54,0.00039452,30]
[387811978,1758886252102,-480.0,0.00039452,30]
[387811979,1758886252112,-890.02,0.00039452,30]
[387811980,1758886252121,-480.0,0.00039452,30]
[387811981,1758886252131,-911.51,0.00039452,30]
[387811982,1758886252139,-3647.69,0.00039452,30]
[387811983,1758886252148,-1929.82,0.00039452,30]
[387811984,1758886252158,-1139.95,0.00039452,30]
[387811985,1758886252167,-480.0,0.00039452,30]
[387811986,1758886252176,-480.0,0.00039452,30]
[387811987,1758886252185,-672.24,0.00039452,30]
[387811988,1758886252194,-617.64484772,0.00039452,30]
[387811989,1758886252203,-480.0,0.00039452,30]
[387811990,1758886252212,-1456.76,0.00039452,30]
[387811991,1758886252221,-1256.61,0.00039452,30]
[387811992,1758886252230,-1058.01,0.00039452,30]
[387811993,1758886252239,-480.0,0.00039452,30]
[387811994,1758886252249,-531.16,0.00039452,30]
[387811995,1758886252258,-480.0,0.00039452,30]
[387811996,1758886252267,-707.41,0.00039452,30]
[387811997,1758886252276,-480.0,0.00039452,30]
[387811998,1758886252286,-1553.02,0.00039452,30]
[387811999,1758886252295,-480.0,0.00039452,30]
[387812000,1758886252304,-480.0,0.00039452,30]
[387812001,1758886252313,-1042.28,0.00039452,21]
[387812002,1758886252323,-480.0,0.00039452,30]
[387812003,1758886252332,-337.43418274,0.00039452,30]
[387812004,1758886252341,-480.0,0.00039452,30]
[387812005,1758886252350,-513.82,0.00039452,30]
[387812006,1758886252359,-484.63727155,0.00039452,30]
[387812007,1758886252368,-975.79,0.00039452,30]
[387812008,1758886252377,-956.88,0.00039452,30]
[387812009,1758886252386,-1622.58,0.00039452,30]
[387812010,1758886252395,-742.63,0.00039452,30]
[387812011,1758886252405,-495.45186621,0.00039452,30]
[387812012,1758886252490,-923.8,0.00039452,30]
[387812013,1758886252500,-960.74,0.00039452,30]
[387812014,1758886252509,-1015.2,0.00039452,30]
[387812015,1758886252519,-692.2,0.00039452,30]
[387812016,1758886252528,-480.0,0.00039452,30]
[387812017,1758886252538,-381.381351,0.00039452,120]
[387812018,1758886252547,-381.381351,0.00039452,120]
[387812019,1758886252556,-528.04193336,0.00039452,30]
[387812020,1758886252565,-480.0,0.00039452,30]
[387812021,1758886252574,-480.0,0.00039452,30]
[387812022,1758886252583,-381.381351,0.00039452,120]
[387812023,1758886252592,-151.0,0.00039452,120]
[387812024,1758886252602,-381.381351,0.00039452,120]
[387812025,1758886252611,-433.57553595,0.00039452,30]
[387812026,1758886252621,-485.49331078,0.00039452,30]
[387812027,1758886252629,-151.91195523,0.00039452,2]
[387812028,1758886252638,-151.0,0.00039452,120]
[387812029,1758886252647,-151.0,0.00039452,120]
[387812030,1758886252656,-480.0,0.00039452,30]
[387812031,1758886252665,-151.0,0.00039452,120]
[387812032,1758886252675,-1057.22,0.00039452,30]
[387812033,1758886252684,-273.74584915,0.00039452,30]
[387812034,1758886252694,-151.0,0.00039452,120]
[387812035,1758886252703,-639.89,0.00039452,30]
[387812036,1758886252712,-1614.22,0.00039452,3]
[387812037,1758886252722,-273.88060364,0.00039452,30]
[387812038,1758886252732,-480.0,0.00039452,30]
[387812039,1758886252742,-1131.75,0.00039452,30]
[387812040,1758886252752,-151.0,0.00039452,120]
[387812041,1758886252762,-611.74,0.00039452,120]
[387812042,1758886252771,-1509.77,0.00039452,30]
[387812043,1758886252780,-2107.48,0.00039452,30]
[387812044,1758886252790,-480.0,0.00039452,30]
[387812045,1758886252798,-151.0,0.00039452,120]
[387812046,1758886252807,-491.26854678,0.00039452,30]
[387812047,1758886252817,-151.0,0.00039452,120]
[387812048,1758886252826,-480.0,0.00039452,30]
[387812049,1758886252836,-1117.68,0.00039452,30]
[387812050,1758886252845,-151.0,0.00039452,120]
[387812051,1758886252854,-601.77532085,0.00039452,30]
[387812052,1758886252867,-480.0,0.00039452,30]
[387812053,1758886252876,-4313.75,0.00039452,30]
[387812054,1758886252885,-5619.58,0.00039452,30]
[387812055,1758886252894,-151.0,0.00039452,120]
[387812056,1758886252903,-480.0,0.00039452,30]
[387812057,1758886252911,-5129.75,0.00039452,30]
[387812058,1758886252920,-151.0,0.00039452,120]
[387812059,1758886252929,-486.17867423,0.00039452,30]
[387812060,1758886252940,-666.88,0.00039452,30]
[387812061,1758886252949,-373.013574,0.00039452,30]
[387812062,1758886252958,-480.0,0.00039452,30]
[387812063,1758886252967,-373.013574,0.00039452,30]
[387812064,1758886252975,-480.0,0.00039452,30]
[387812065,1758886252984,-373.013574,0.00039452,30]
[387812066,1758886252994,-1231.34,0.00039452,30]
[387812067,1758886253003,-480.0,0.00039452,30]
[387812068,1758886253012,-151.0,0.00039452,120]
[387812069,1758886253021,-480.0,0.00039452,30]
[387812070,1758886253030,-480.0,0.00039452,30]
[387812071,1758886253039,-480.0,0.00039452,30]
[387812072,1758886253048,-373.013574,0.00039452,30]
[387812073,1758886253056,-151.0,0.00039452,120]
[387812074,1758886253065,-510.99,0.00039452,30]
[387812075,1758886253074,-151.0,0.00039452,120]
[387812076,1758886253083,-151.0,0.00039468,120]
[387812077,1758886253092,-151.0,0.00039468,120]
[387812078,1758886253101,-151.0,0.00039468,120]
[387812079,1758886253110,-151.0,0.00039468,120]
[387812080,1758886253119,-199.204504,0.00039468,120]
[387812081,1758886253129,-500.0,0.00039468,5]
[387812082,1758886253137,-1592.33448443,0.00039468,5]
[387812083,1758886253147,-1500.0,0.00039468,5]
[387812084,1758886253156,-696.38299744,0.00039489,2]
[387812085,1758886253165,-5000.0,0.000395,90]
[387812086,1758886253175,-300.0,0.00039521,5]
[387812087,1758886253184,-151.0,0.0003954,3]
[387812088,1758886253193,-151.0,0.0003954,3]
[387812089,1758886253203,-151.0,0.0003954,3]
[387812090,1758886253211,-151.0,0.0003954,3]
[387812091,1758886253220,-151.0,0.0003954,3]
[387812092,1758886253230,-151.76780899,0.0003954,3]
[387812093,1758886253239,-164.09616662,0.0003954,3]
[387812094,1758886253249,-219.23198078,0.0003954,3]
[387812095,1758886253257,-151.0,0.0003954,3]
[387812096,1758886253266,-151.0,0.0003954,3]
[387812097,1758886253276,-151.0,0.0003954,3]
[387812098,1758886253285,-151.0,0.0003954,3]
[387812099,1758886253294,-500.0,0.0003954,3]
[387812100,1758886253303,-151.0,0.000396,20]
[387812101,1758886253312,-500.0,0.00039626,30]
[387812102,1758886253322,-480.0,0.00039726,30]
[387812103,1758886253331,-480.0,0.00039726,30]
[387812104,1758886253341,-480.0,0.00039726,30]
[387812105,1758886253350,-573.65400459,0.00039726,30]
[387812106,1758886253359,-480.0,0.00039726,30]
[387812107,1758886253368,-480.0,0.00039726,30]
[387812108,1758886253378,-480.0,0.00039726,30]
[387812109,1758886253387,-480.0,0.00039726,30]
[387812110,1758886253397,-480.0,0.00039726,30]
[387812111,1758886253407,-317.78869667,0.00039726,30]
[387812112,1758886253416,-480.0,0.00039726,30]
[387812113,1758886253426,-480.0,0.00039726,30]
[387812114,1758886253435,-480.0,0.00039726,30]
[387812115,1758886253444,-480.0,0.00039726,30]
[387812116,1758886253453,-480.0,0.00039726,30]
[387812117,1758886253463,-1185.5,0.00039726,30]
[387812118,1758886253472,-480.0,0.00039726,30]
[387812119,1758886253481,-716.53,0.00039726,30]
[387812120,1758886253491,-439.78294485,0.00039726,30]
[387812121,1758886253500,-518.02,0.00039726,30]